bitfinex-derivatives/quotes_BTCF0:USTF0_20250402
["timestamp","ask_amount","ask_price","bid_price","bid_amount"]
[1743605966898,0.12345821,85938.0,85935.0,0.2104]
[1743605967809,0.12345821,85938.0,85935.0,0.2204]
[1743605968403,0.00064,85938.0,85935.0,0.2204]
[1743605968701,0.1005,85939.0,85935.0,0.2204]
[1743605968907,0.10114,85939.0,85935.0,0.2204]
[1743605969503,0.0976,85938.0,85935.0,0.2204]
[1743605969804,0.09832,85938.0,85935.0,0.2204]
[1743605970205,0.1062,85937.0,85935.0,0.2204]
[1743605970416,0.10684,85937.0,85935.0,0.2204]
[1743605970622,0.4584,85936.0,85935.0,0.2104]
[1743605970809,0.4584,85936.0,85914.0,0.3608]
[1743605970810,0.5849873,85936.0,85914.0,0.3608]
[1743605971111,0.5849873,85936.0,85904.0,0.3608]
[1743605971112,0.3608,85919.0,85917.0,0.1006]
[1743605971305,0.2987,85918.0,85917.0,0.1014]
[1743605971507,0.29958,85918.0,85917.0,0.1014]
[1743605971699,0.19638,85918.0,85917.0,0.1014]
[1743605972408,0.68174786,85918.0,85917.0,0.1014]
[1743605972708,0.12544786,85918.0,85917.0,0.1014]
[1743605973007,0.00017451,85926.0,85917.0,0.4576]
[1743605973209,0.00017451,85926.0,85921.0,0.3608]
[1743605973395,0.00017451,85926.0,85922.0,0.1006]
[1743605973599,0.13225323,85925.0,85922.0,0.1112]
[1743605973804,0.2067,85924.0,85922.0,0.1112]
[1743605973997,0.20730001,85924.0,85922.0,0.0006]
[1743605974204,0.13225323,85923.0,85915.0,0.0964]
[1743605974413,0.3608,85920.0,85915.0,0.09704]
[1743605974706,0.3608,85920.0,85909.0,0.00017451]
[1743605974707,0.3608,85917.0,85909.0,0.00017451]
[1743605974898,0.1054,85916.0,85909.0,0.00017451]
[1743605975103,0.3608,85910.0,85909.0,0.00017451]
[1743605975310,0.36140001,85910.0,85909.0,0.00017451]
[1743605975507,0.49444952,85910.0,85909.0,0.00017451]
[1743605977206,0.49444952,85910.0,85909.0,0.00077451]
[1743605978095,0.50444952,85910.0,85909.0,0.00077451]
[1743605978506,0.50444952,85910.0,85904.0,0.27476905]
[1743605978708,0.3608,85907.0,85904.0,0.27536905]
[1743605978908,0.3608,85907.0,85904.0,0.27476905]
[1743605978909,0.2015,85906.0,85904.0,0.27476905]
[1743605979107,0.34616786,85906.0,85891.0,0.0957]
[1743605979314,0.3608,85894.0,85891.0,0.0006]
[1743605979613,0.3042,85893.0,85891.0,0.0006]
[1743605979814,0.42872608,85893.0,85891.0,0.0006]
[1743605980111,0.42872608,85893.0,85891.0,0.1056]
[1743605981309,0.12452608,85893.0,85891.0,0.1056]
[1743605981523,0.00072,85893.0,85892.0,0.1012]
[1743605981806,0.00072,85893.0,85892.0,0.1118]
[1743605982815,0.1024,85900.0,85892.0,0.1118]
[1743605983000,0.00017462,85901.0,85892.0,0.1118]
[1743605983203,0.13125283,85899.0,85892.0,0.1118]
[1743605983603,0.00072,85899.0,85892.0,0.1118]
[1743605984109,0.1221639,85898.0,85892.0,0.1118]
[1743605984311,0.1228839,85898.0,85892.0,0.1118]
[1743605985809,0.0968,85897.0,85892.0,0.1118]
[1743605986008,0.09752,85897.0,85892.0,0.1118]
[1743605986207,0.09752,85897.0,85893.0,0.1039]
[1743605986407,0.09752,85897.0,85893.0,0.11462]
[1743605986608,0.00072,85897.0,85893.0,0.11462]
[1743605988906,0.00072,85897.0,85894.0,0.1001]
[1743605989110,0.1022,85899.0,85894.0,0.1207]
[1743605989306,0.1022,85899.0,85895.0,0.1045]
[1743605989505,0.12188953,85898.0,85895.0,0.12514]
[1743605989816,0.22120953,85898.0,85895.0,0.12514]
[1743605990027,0.1,85897.0,85895.0,0.12514]
[1743605990415,0.0986,85896.0,85895.0,0.12514]
[1743605990816,0.09936,85896.0,85895.0,0.02064]
[1743605994917,0.23249877,85896.0,85895.0,0.02064]
[1743605997623,0.23249877,85896.0,85895.0,0.00064]
[1743605998715,0.23249877,85896.0,85890.0,0.1045]
[1743605998916,0.0958,85895.0,85890.0,0.1051]
[1743605999115,0.09652,85895.0,85890.0,0.1045]
[1743605999425,0.32939162,85894.0,85890.0,0.1045]
[1743605999621,0.32939162,85894.0,85885.0,0.10550927]
[1743605999622,0.33011162,85894.0,85885.0,0.46630927]
[1743605999921,0.0958,85893.0,85886.0,0.1006]
[1743606000128,0.09652,85893.0,85886.0,0.4691]
[1743606000425,0.3608,85891.0,85886.0,0.0006]
[1743606000620,0.3608,85887.0,85886.0,0.0006]
[1743606000922,0.00072,85887.0,85886.0,0.0006]
[1743606001111,0.122702,85887.0,85886.0,0.3714]
[1743606001311,0.098,85900.0,85886.0,0.3714]
[1743606001521,0.10186,85900.0,85886.0,0.3714]
[1743606001719,0.098,85899.0,85886.0,0.3714]
[1743606001924,0.0988,85899.0,85886.0,0.3714]
[1743606002124,0.0988,85899.0,85886.0,0.71451361]
[1743606002125,0.12497126,85898.0,85886.0,0.71451361]
[1743606002418,0.12577126,85898.0,85888.0,0.15594106]
[1743606002619,0.12577126,85898.0,85889.0,0.1997]
[1743606002818,0.12577126,85898.0,85897.0,0.3608]
[1743606003018,0.1011,85919.0,85898.0,0.15594106]
[1743606003213,0.00068,85909.0,85898.0,0.62636106]
[1743606003413,0.13441253,85919.0,85905.0,0.3608]
[1743606003622,0.13441253,85919.0,85913.0,0.3608]
[1743606003623,0.13501254,85919.0,85913.0,0.3608]
[1743606003819,0.00060001,85919.0,85914.0,0.28586]
[1743606004012,0.098,85925.0,85914.0,0.46662]
[1743606004223,0.09885462,85925.0,85918.0,0.34311361]
[1743606004417,0.22728481,85924.0,85919.0,0.1917]
[1743606004623,0.22796481,85924.0,85919.0,0.00068]
[1743606004820,0.2065,85923.0,85919.0,0.00068]
[1743606005123,0.20718,85923.0,85919.0,0.00068]
[1743606005318,0.22728481,85922.0,85918.0,0.34311361]
[1743606005523,0.3608,85919.0,85918.0,0.18621361]
[1743606005821,0.3608,85919.0,85868.0,0.08616]
[1743606005822,0.1933,85918.0,85868.0,0.08616]
[1743606006122,0.1933,85918.0,85882.0,0.65840355]
[1743606006123,0.3608,85887.0,85882.0,0.65840355]
[1743606006317,0.36176001,85887.0,85883.0,0.0952]
[1743606006510,0.13344848,85886.0,85883.0,0.2931]
[1743606006712,0.13432849,85886.0,85883.0,0.2931]
[1743606007317,0.0973,85885.0,85883.0,0.0958]
[1743606007521,0.09818001,85885.0,85883.0,0.0958]
[1743606007828,0.09818001,85885.0,85884.0,0.1024]
[1743606008014,0.09818001,85885.0,85884.0,0.00096]
[1743606008215,0.23941948,85885.0,85884.0,0.00096]
[1743606008613,0.60021948,85885.0,85884.0,0.00096]
[1743606009020,0.61021948,85885.0,85884.0,0.00096]
[1743606009530,0.70491948,85885.0,85884.0,0.00096]
[1743606009836,0.70491948,85885.0,85866.0,0.48462166]
[1743606009837,0.1933,85884.0,85866.0,0.48462166]
[1743606010036,0.1933,85884.0,85852.0,0.61357026]
[1743606010037,0.7216,85867.0,85862.0,0.31153521]
[1743606010215,0.7416,85867.0,85862.0,0.31153521]
[1743606010418,0.7416,85867.0,85862.0,0.31213521]
[1743606010419,0.42122882,85866.0,85862.0,0.31213521]
[1743606010722,0.60312979,85866.0,85862.0,0.0006]
[1743606011023,0.61312979,85866.0,85846.0,0.48331636]
[1743606011329,0.7216,85847.0,85846.0,0.48391636]
[1743606011518,0.72300001,85847.0,85846.0,0.48391636]
[1743606011718,0.86324456,85847.0,85846.0,0.48391636]
[1743606012417,1.01324456,85847.0,85846.0,0.48391636]
[1743606012628,0.86324456,85847.0,85846.0,0.48391636]
[1743606013422,1.04524456,85847.0,85846.0,0.48391636]
[1743606014929,1.05524456,85847.0,85846.0,0.48391636]
[1743606015634,1.05524456,85847.0,85846.0,0.0006]
[1743606015928,1.05524456,85847.0,85838.0,0.0959]
[1743606016126,0.3608,85839.0,85838.0,0.0959]
[1743606016323,0.36216,85839.0,85838.0,0.0965]
[1743606016837,0.0966,85847.0,85838.0,0.0965]
[1743606016838,0.3608,85847.0,85838.0,0.5673]
[1743606017132,0.00092,85847.0,85846.0,0.3608]
[1743606017323,0.3608,85852.0,85846.0,0.01064]
[1743606017523,0.001,85852.0,85847.0,0.1014]
[1743606017723,0.15594106,85870.0,85847.0,0.1014]
[1743606017724,0.3608,85880.0,85849.0,0.3608]
[1743606018034,0.3608,85892.0,85868.0,0.3608]
[1743606018229,0.3608,85892.0,85876.0,0.3608]
[1743606018435,0.3608,85892.0,85877.0,0.1014]
[1743606018731,0.3608,85883.0,85877.0,0.10212]
[1743606018927,0.17492964,85882.0,85877.0,0.10212]
[1743606019128,0.13220149,85881.0,85877.0,0.1101242]
[1743606019332,0.13292149,85881.0,85877.0,0.1108442]
[1743606019536,0.00072,85881.0,85877.0,0.1108442]
[1743606020936,0.00072,85881.0,85878.0,0.097]
[1743606021138,0.00017473,85888.0,85879.0,0.1052]
[1743606021430,0.00089473,85888.0,85879.0,0.20592]
[1743606021629,0.12331677,85887.0,85879.0,0.20592]
[1743606021934,0.00076,85887.0,85881.0,0.3608]
[1743606022121,0.36097473,85888.0,85881.0,0.03072]
[1743606022325,0.12331677,85887.0,85881.0,0.00072]
[1743606022642,0.22493677,85887.0,85881.0,0.00072]
[1743606022831,0.4648,85886.0,85878.0,0.097]
[1743606023027,0.4648,85886.0,85871.0,0.10507473]
[1743606023028,0.3608,85879.0,85871.0,0.00017473]
[1743606023233,0.2049,85878.0,85871.0,0.00017473]
[1743606023432,0.34158299,85878.0,85871.0,0.00017473]
[1743606023634,0.32814879,85878.0,85871.0,0.00017473]
[1743606024034,0.12324879,85878.0,85871.0,0.00017473]
[1743606024337,0.00060001,85878.0,85871.0,0.20929473]
[1743606024640,0.3608,85878.0,85871.0,0.20929473]
[1743606024820,0.36152,85878.0,85871.0,0.20929473]
[1743606025231,0.00072,85878.0,85871.0,0.68009473]
[1743606025436,0.3608,85886.0,85871.0,0.68009473]
[1743606025738,0.36152,85886.0,85871.0,0.68009473]
[1743606025941,0.13248113,85885.0,85876.0,0.17573753]
[1743606026130,0.00017473,85888.0,85878.0,0.3608]
[1743606026327,0.3608,85900.0,85887.0,0.3608]
[1743606026633,0.00092,85900.0,85888.0,0.1958]
[1743606026826,0.00092,85900.0,85888.0,0.19672]
[1743606027027,0.3608,85892.0,85888.0,0.19672]
[1743606027334,0.36172,85892.0,85885.0,0.00017463]
[1743606027539,0.32924153,85891.0,85885.0,0.00017463]
[1743606027739,0.32984154,85891.0,85885.0,0.00017463]
[1743606029042,0.12524154,85891.0,85885.0,0.00017463]
[1743606029223,0.2488935,85972.0,85887.0,0.3608]
[1743606029224,0.01341517,85927.0,85887.0,0.3608]
[1743606029537,0.3608,85921.0,85910.0,0.17573753]
[1743606029725,0.36164,85921.0,85911.0,0.28762]
[1743606029927,0.13048672,85920.0,85911.0,0.28854]
[1743606030235,0.13140672,85920.0,85911.0,0.30161501]
[1743606030643,0.00092,85920.0,85911.0,0.57161501]
[1743606031138,0.00092,85920.0,85911.0,0.55854]
[1743606031338,0.3608,85912.0,85911.0,0.20242]
[1743606031535,0.36148,85912.0,85911.0,0.20242]
[1743606031921,0.48556215,85912.0,85911.0,0.00092]
[1743606032134,0.48556215,85912.0,85907.0,0.00017463]
[1743606032436,0.2013,85911.0,85907.0,0.00017463]
[1743606032636,0.20194,85911.0,85907.0,0.00017463]
[1743606032837,0.13363748,85910.0,85907.0,0.00017463]
[1743606033141,0.13423749,85910.0,85907.0,0.00017463]
[1743606033934,0.3608,85921.0,85907.0,0.20431463]
[1743606034233,0.00104001,85921.0,85911.0,0.17573753]
[1743606034435,0.00104001,85921.0,85912.0,0.54782]
[1743606034641,0.3608,85927.0,85912.0,0.6889]
[1743606034937,0.3608,85935.0,85912.0,0.6889]
[1743606034938,0.3608,85922.0,85913.0,0.1021]
[1743606035139,0.36188,85922.0,85913.0,0.12318]
[1743606035639,0.00108,85922.0,85913.0,0.12318]
[1743606035939,0.3608,85944.0,85920.0,0.3608]
[1743606036234,0.36216,85944.0,85931.0,0.3608]
[1743606036533,0.36216,85944.0,85932.0,0.38868]
[1743606036534,0.12110347,85943.0,85932.0,0.38868]
[1743606036739,0.22164347,85943.0,85932.0,0.3126]
[1743606036940,0.3608,85936.0,85932.0,0.30404]
[1743606037233,0.0991,85935.0,85932.0,0.10454]
[1743606037430,0.32462896,85935.0,85932.0,0.1031]
[1743606038836,0.3608,85933.0,85920.0,0.0974]
[1743606039034,0.2032,85932.0,85922.0,0.097]
[1743606039225,0.2032,85932.0,85909.0,0.1009]
[1743606039226,0.3608,85923.0,85909.0,0.1009]
[1743606039533,0.3608,85913.0,85910.0,0.097]
[1743606039739,0.0979,85912.0,85910.0,0.09836]
[1743606039935,0.22373582,85912.0,85910.0,0.09836]
[1743606040435,0.44688,85911.0,85870.0,0.58695016]
[1743606040733,0.3608,85901.0,85897.0,0.0984]
[1743606040939,0.3608,85898.0,85897.0,0.09932]
[1743606041232,0.3608,85898.0,85897.0,0.0984]
[1743606041426,0.49339814,85898.0,85897.0,0.0984]
[1743606041938,0.49339814,85898.0,85889.0,0.00017463]
[1743606042133,0.3608,85890.0,85889.0,0.00017463]
[1743606043128,0.3608,85902.0,85889.0,0.00017463]
[1743606043332,0.3608,85902.0,85890.0,0.17573753]
[1743606043631,0.3608,85892.0,85891.0,0.2032]
[1743606043831,0.1006,85901.0,85891.0,0.20412]
[1743606044833,0.3608,85902.0,85891.0,0.20412]
[1743606045037,0.36172,85902.0,85891.0,0.20412]
[1743606046637,0.0992,85901.0,85891.0,0.20412]
[1743606046832,0.10016001,85901.0,85891.0,0.20412]
[1743606047234,0.00096001,85901.0,85891.0,0.20412]
[1743606047843,0.10016001,85901.0,85891.0,0.20412]
[1743606048547,0.00096001,85901.0,85891.0,0.57492]
[1743606048939,0.10016001,85901.0,85891.0,0.57492]
[1743606049745,0.00096001,85901.0,85891.0,0.57492]
[1743606050444,0.10616001,85901.0,85891.0,0.57492]
[1743606050746,0.20286001,85901.0,85891.0,0.57492]
[1743606050942,0.00096001,85901.0,85891.0,0.57492]
[1743606051152,0.3608,85918.0,85900.0,0.3608]
[1743606051339,0.3608,85918.0,85901.0,0.39058]
[1743606051538,0.1052,85917.0,85901.0,0.5615]
[1743606051937,0.1052,85917.0,85903.0,0.3608]
[1743606052248,0.3608,85935.0,85904.0,0.2027]
[1743606052542,0.3608,85925.0,85913.0,0.3608]
[1743606052847,0.36172,85925.0,85914.0,0.2054]
[1743606053039,0.36172,85925.0,85914.0,0.20632]
[1743606053240,0.22103151,85924.0,85915.0,0.08608]
[1743606053441,0.00092,85924.0,85915.0,0.097]
[1743606054035,0.17438427,85928.0,85921.0,0.3608]
[1743606054239,0.17498428,85928.0,85922.0,0.3098]
[1743606054439,0.17498428,85928.0,85922.0,0.33072]
[1743606055450,0.3608,85924.0,85922.0,0.31072]
[1743606055650,0.001,85924.0,85922.0,0.31072]
[1743606057148,0.00017463,85928.0,85922.0,0.31072]
[1743606057340,0.00085463,85928.0,85922.0,0.41072]
[1743606059843,0.00085463,85928.0,85927.0,0.3608]
[1743606060051,0.00017463,85928.0,85927.0,0.37172]
[1743606060442,0.00017463,85928.0,85927.0,0.01949006]
[1743606060745,0.00017463,85928.0,85927.0,0.00949006]
[1743606060939,0.00109463,85928.0,85927.0,0.00949006]
[1743606061749,0.00109463,85928.0,85922.0,0.1043]
[1743606061953,0.3608,85923.0,85922.0,0.10522]
[1743606062252,0.36172,85923.0,85922.0,0.10522]
[1743606063045,0.36172,85923.0,85922.0,0.00092]
[1743606063251,0.36172,85923.0,85916.0,0.099]
[1743606063446,0.202,85922.0,85916.0,0.09992]
[1743606063648,0.3047,85922.0,85916.0,0.09992]
[1743606063846,0.12379185,85921.0,85916.0,0.099]
[1743606064152,0.00064,85921.0,85916.0,0.109]
[1743606064455,0.00064,85921.0,85917.0,0.1048]
[1743606064749,0.3608,85923.0,85917.0,0.1048]
[1743606064750,0.00017463,85928.0,85918.0,0.54584]
[1743606064953,0.1007,85943.0,85927.0,0.3608]
[1743606065152,0.1007,85943.0,85936.0,0.3608]
[1743606065361,0.23051469,85943.0,85937.0,0.2029]
[1743606065542,0.23051469,85943.0,85937.0,0.20402]
[1743606066144,0.23051469,85943.0,85937.0,0.21288859]
[1743606066345,0.23051469,85943.0,85937.0,0.22634671]
[1743606067852,0.00017463,85949.0,85941.0,0.3608]
[1743606068039,0.00017463,85949.0,85942.0,0.2008]
[1743606068240,0.3608,85947.0,85943.0,0.0957]
[1743606068445,0.2077,85946.0,85944.0,0.0982]
[1743606068746,0.33650779,85946.0,85944.0,0.09968]
[1743606068947,0.33650779,85946.0,85944.0,0.0982]
[1743606069350,0.33650779,85946.0,85937.0,0.00886859]
[1743606069553,0.33650779,85946.0,85937.0,0.00148]
[1743606070141,0.3608,85938.0,85937.0,0.00148]
[1743606070657,0.49580327,85938.0,85937.0,0.00148]
[1743606071452,0.49580327,85938.0,85932.0,0.27335282]
[1743606071651,0.3608,85933.0,85932.0,0.27435282]
[1743606072157,0.49377838,85933.0,85932.0,0.27435282]
[1743606073452,0.3608,85933.0,85932.0,0.47475282]
[1743606074854,0.3608,85933.0,85932.0,0.2014]
[1743606075156,0.00064,85933.0,85932.0,0.2004]
[1743606075344,0.00064,85933.0,85932.0,0.2014]
[1743606075545,0.00064,85933.0,85932.0,0.3114]
[1743606075750,0.0984,85947.0,85932.0,0.3114]
[1743606075751,0.1009,85946.0,85932.0,0.3114]
[1743606076047,0.10198,85946.0,85932.0,0.3114]
[1743606076247,0.22486008,85946.0,85932.0,0.3114]
[1743606076756,0.1003,85945.0,85932.0,0.3114]
[1743606076957,0.1013,85945.0,85932.0,0.3114]
[1743606077256,0.2214067,85944.0,85936.0,0.3608]
[1743606077457,0.2220867,85944.0,85937.0,0.2065]
[1743606077654,0.2220867,85944.0,85937.0,0.2075]
[1743606077857,0.2220867,85944.0,85937.0,0.2175]
[1743606078860,0.2220867,85944.0,85937.0,0.323]
[1743606079758,0.00068,85944.0,85937.0,0.409]
[1743606079960,0.00017463,85949.0,85937.0,0.409]
[1743606080851,0.3608,85947.0,85937.0,0.409]
[1743606081159,0.1015,85946.0,85937.0,0.409]
[1743606081362,0.20488,85946.0,85937.0,0.1021]
[1743606081557,0.3608,85938.0,85937.0,0.1011]
[1743606081758,0.3618,85938.0,85937.0,0.001]
[1743606082061,0.4925147,85938.0,85931.0,0.00017463]
[1743606082251,0.2038,85937.0,85931.0,0.00117463]
[1743606082451,0.20488,85937.0,85931.0,0.00117463]
[1743606082655,0.1323838,85936.0,85931.0,0.00117463]
[1743606082851,0.1333838,85936.0,85931.0,0.00117463]
[1743606083152,0.2038,85935.0,85931.0,0.00117463]
[1743606083351,0.21488,85935.0,85931.0,0.00117463]
[1743606083550,0.1323838,85934.0,85931.0,0.00117463]
[1743606083747,0.15612883,85934.0,85931.0,0.00117463]
[1743606084065,0.00108,85934.0,85931.0,0.01117463]
[1743606084249,0.00108,85934.0,85932.0,0.2903]
[1743606084453,0.3608,85938.0,85932.0,0.3013]
[1743606084646,0.36184001,85938.0,85932.0,0.3013]
[1743606085050,0.00104001,85938.0,85934.0,0.3608]
[1743606085247,0.1015,85948.0,85935.0,0.2788]
[1743606085457,0.1015,85948.0,85935.0,0.4098]
[1743606085458,0.10214,85948.0,85935.0,0.4098]
[1743606085859,0.10412721,85946.0,85935.0,0.4098]
[1743606086156,0.10512721,85946.0,85935.0,0.4098]
[1743606086347,0.10512721,85946.0,85941.0,0.3608]
[1743606086552,0.10512721,85946.0,85942.0,0.1975]
[1743606086747,0.10512721,85946.0,85942.0,0.20854]
[1743606087153,0.10512721,85946.0,85942.0,0.10754]
[1743606087462,0.2082,85945.0,85942.0,0.09754]
[1743606087661,0.2092,85945.0,85943.0,0.101]
[1743606087870,0.57,85945.0,85943.0,0.10204]
[1743606088058,0.57,85945.0,85944.0,0.0965]
[1743606088364,0.4681,85945.0,85944.0,0.0965]
[1743606088567,0.4681,85945.0,85944.0,0.09754]
[1743606091162,0.3618,85945.0,85944.0,0.09754]
[1743606091761,0.001,85945.0,85944.0,0.09754]
[1743606093658,0.001,85945.0,85944.0,0.45834]
[1743606093854,0.00017463,85949.0,85944.0,0.80834]
[1743606094059,0.00017463,85949.0,85945.0,0.1038]
[1743606094265,0.00017463,85949.0,85945.0,0.4448]
[1743606094467,0.00017463,85949.0,85946.0,0.2014]
[1743606094669,0.00017463,85949.0,85946.0,0.4624]
[1743606094863,0.00017463,85949.0,85947.0,0.1038]
[1743606095069,0.00017463,85949.0,85947.0,0.34488]
[1743606095262,0.00017463,85949.0,85948.0,0.0991]
[1743606095467,0.00017463,85949.0,85948.0,0.3401]
[1743606095768,0.00017463,85949.0,85948.0,0.4403]
[1743606095968,0.10412721,85961.0,85948.0,0.4503]
[1743606096169,0.10412721,85961.0,85956.0,0.3608]
[1743606096369,0.3608,85960.0,85957.0,0.1008]
[1743606096563,0.3608,85960.0,85943.0,0.04]
[1743606096564,0.3608,85958.0,85934.0,0.08596]
[1743606096761,0.3608,85947.0,85942.0,0.2476528]
[1743606096968,0.3051,85946.0,85942.0,0.2076528]
[1743606097163,0.43729719,85946.0,85942.0,0.2076528]
[1743606098070,0.43729719,85946.0,85943.0,0.1008]
[1743606098262,0.43729719,85946.0,85943.0,0.1018]
[1743606098662,0.43729719,85946.0,85943.0,0.001]
[1743606099067,0.3608,85944.0,85943.0,0.001]
[1743606099268,0.36188,85944.0,85943.0,0.001]
[1743606099573,0.48913143,85944.0,85943.0,0.001]
[1743606100078,0.48913143,85944.0,85943.0,0.1094]
[1743606100267,0.48913143,85944.0,85943.0,0.1084]
[1743606101164,0.48913143,85944.0,85936.0,0.00017452]
[1743606101364,0.2044,85943.0,85936.0,0.01017452]
[1743606101669,0.20500001,85943.0,85936.0,0.01117452]
[1743606101875,0.12372898,85942.0,85936.0,0.01117452]
[1743606102064,0.3608,85937.0,85936.0,0.01117452]
[1743606102265,0.3618,85937.0,85936.0,0.01117452]
[1743606103167,0.001,85937.0,85936.0,0.01117452]
[1743606103368,0.001,85937.0,85936.0,0.11767452]
[1743606103766,0.001,85937.0,85936.0,0.47847452]
[1743606103966,0.001,85937.0,85936.0,0.59847452]
[1743606104276,0.10412721,85946.0,85936.0,0.84847452]
[1743606104577,0.10544721,85946.0,85945.0,0.3608]
[1743606104762,0.10544721,85946.0,85945.0,0.62212]
[1743606104968,0.10544721,85946.0,85945.0,0.63212]
[1743606104969,0.10412721,85946.0,85945.0,0.63212]
[1743606106867,0.10412721,85946.0,85945.0,0.62212]
[1743606107063,0.2045,85952.0,85945.0,0.62212]
[1743606107373,0.2045,85952.0,85946.0,0.2182]
[1743606107575,0.2045,85952.0,85947.0,0.08592]
[1743606107775,0.2045,85952.0,85947.0,0.36724]
[1743606107975,0.2045,85952.0,85948.0,0.2066]
[1743606108175,0.2045,85952.0,85948.0,0.438]
[1743606108176,0.1013,85952.0,85948.0,0.438]
[1743606108674,0.00017452,85953.0,85948.0,0.438]
[1743606111279,0.00017452,85953.0,85948.0,0.588]
[1743606112473,0.00017452,85953.0,85949.0,0.2066528]
[1743606112675,0.00017452,85953.0,85949.0,0.5879728]
[1743606112978,0.00017452,85953.0,85950.0,0.40582]
[1743606113177,0.00017452,85953.0,85950.0,0.77714]
[1743606116166,0.1085,85971.0,85956.0,0.17573753]
[1743606116369,0.1085,85971.0,85969.0,0.3608]
[1743606116370,0.102,85970.0,85969.0,0.3608]
[1743606116573,0.00132,85970.0,85969.0,0.6008]
[1743606116773,0.10412721,85972.0,85969.0,0.6022]
[1743606116974,0.10552722,85972.0,85969.0,0.6022]
[1743606117170,0.10552722,85972.0,85970.0,0.1022]
[1743606117477,0.00140001,85972.0,85970.0,0.34356]
[1743606117674,0.103,85976.0,85970.0,0.34356]
[1743606117883,0.10360001,85976.0,85970.0,0.34356]
[1743606118382,0.10360001,85976.0,85970.0,0.35226064]
[1743606118575,0.00060001,85976.0,85970.0,0.47511436]
[1743606118776,0.00011594,85979.0,85970.0,0.47511436]
[1743606118974,0.00147594,85979.0,85976.0,0.3608]
[1743606119275,0.13469092,85978.0,85976.0,0.3922]
[1743606119581,0.00136,85978.0,85977.0,0.1081]
[1743606119775,0.00011594,85979.0,85977.0,0.30942]
[1743606119979,0.00079594,85979.0,85978.0,0.08588]
[1743606120175,0.00079594,85979.0,85978.0,0.36728]
[1743606120375,0.00079594,85979.0,85978.0,0.47538]
[1743606121575,0.08588,86011.0,85978.0,0.47538]
[1743606121576,0.10412721,85995.0,85978.0,0.19538]
[1743606121781,0.10412721,85995.0,85992.0,0.3608]
[1743606122078,0.10412721,85995.0,85993.0,0.30048]
[1743606122286,0.1052,85994.0,85993.0,0.36204]
[1743606122479,0.10412721,85995.0,85993.0,0.36204]
[1743606122886,0.10412721,85995.0,85993.0,0.27616]
[1743606123084,0.10412721,85995.0,85994.0,0.08588]
[1743606123285,0.13903956,85999.0,85994.0,0.32152]
[1743606123590,0.13903956,85999.0,85995.0,0.08588]
[1743606123883,0.13903956,85999.0,85995.0,0.4774]
[1743606124185,0.13903956,85999.0,85995.0,0.27152]
[1743606124388,0.2195,85998.0,85995.0,0.3574]
[1743606125186,0.3608,85996.0,85974.0,0.3608]
[1743606125394,0.3608,85986.0,85985.0,0.01017452]
[1743606125592,0.35443168,85995.0,85985.0,0.11017452]
[1743606125886,0.2295,85995.0,85985.0,0.11017452]
[1743606126074,0.2295,85995.0,85986.0,0.1049]
[1743606126276,0.12801074,85994.0,85986.0,0.5757]
[1743606126579,0.3608,85996.0,85987.0,0.19298]
[1743606126779,0.1033,85994.0,85987.0,0.2641]
[1743606126982,0.23408694,85994.0,85987.0,0.07112]
[1743606127188,0.3608,85989.0,85987.0,0.00112]
[1743606127381,0.3116,85988.0,85987.0,0.00108]
[1743606127582,0.44238694,85988.0,85987.0,0.00108]
[1743606128291,0.45238694,85988.0,85970.0,0.00870064]
[1743606128491,0.3608,85978.0,85970.0,0.00870064]
[1743606128784,0.3608,85978.0,85970.0,0.02137]
[1743606128978,0.48254992,85978.0,85970.0,0.02137]
[1743606129288,0.48254992,85978.0,85970.0,0.02143561]
[1743606129589,0.2085,85977.0,85971.0,0.1095]
[1743606129882,0.2085,85977.0,85971.0,0.2395]
[1743606130088,0.2085,85977.0,85972.0,0.1033]
[1743606130292,0.20926,85977.0,85972.0,0.23406]
[1743606130491,0.00076,85977.0,85973.0,0.1095]
[1743606130703,0.00076,85977.0,85974.0,0.2139]
[1743606130990,0.00076,85977.0,85974.0,0.36466]
[1743606131183,0.10916,85977.0,85975.0,0.1095]
[1743606131385,0.20926,85977.0,85975.0,0.2503]
[1743606131584,0.20926,85977.0,85976.0,0.1019]
[1743606131794,0.00076,85977.0,85976.0,0.49346]
[1743606131984,0.2059,85985.0,85976.0,0.60406]
[1743606132176,0.2067,85985.0,85976.0,0.6899]
[1743606132781,0.1037,85985.0,85976.0,0.7899]
[1743606133388,0.0008,85985.0,85984.0,0.3608]
[1743606133601,0.103,86007.0,85984.0,0.85156]
[1743606133892,0.2059,86007.0,85996.0,0.3608]
[1743606134193,0.13903956,86005.0,85997.0,0.29834]
[1743606134493,0.1029,85999.0,85997.0,0.4491]
[1743606134691,0.10358,85999.0,85997.0,0.4491]
[1743606135490,0.00068,85999.0,85997.0,0.4491]
[1743606136896,0.10548,85999.0,85997.0,0.5491]
[1743606137083,0.00068,85999.0,85997.0,0.5491]
[1743606137290,0.00068,85999.0,85997.0,0.4491]
[1743606138709,0.12182609,85998.0,85989.0,0.00017452]
[1743606138888,0.3608,85994.0,85989.0,0.10081452]
[1743606139087,0.36144,85994.0,85990.0,0.1079]
[1743606139288,0.1002,85993.0,85990.0,0.1079]
[1743606139488,0.10084,85993.0,85990.0,0.1279]
[1743606139697,0.10084,85993.0,85990.0,0.12858]
[1743606140401,0.10084,85993.0,85991.0,0.1066]
[1743606140590,0.10084,85993.0,85991.0,0.2372]
[1743606140791,0.00064,85993.0,85992.0,0.1079]
[1743606141093,0.1093,85999.0,85992.0,0.7149]
[1743606141295,0.10998,85999.0,85992.0,0.7149]
[1743606142299,0.00068,85999.0,85992.0,0.8149]
[1743606142498,0.105,86000.0,85993.0,0.1103]
[1743606142795,0.105,86000.0,85993.0,0.30098]
[1743606142997,0.1093,85999.0,85993.0,0.30098]
[1743606143804,0.3608,85994.0,85980.0,0.02]
[1743606144093,0.3608,85987.0,85980.0,0.00068]